bitfinex/quotes_SOLUSD_20240612
["timestamp","ask_amount","ask_price","bid_price","bid_amount"]
[1718155173060,1006.77661421,147.0,146.99,15.1029]
[1718155173361,1006.77661421,147.0,146.99,25.5116]
[1718155173570,1006.77661421,147.0,146.99,25.8516]
[1718155173873,1012.80131421,147.0,146.98,2.5172]
[1718155174583,1022.80131421,147.0,146.98,2.5172]
[1718155174790,1022.80131421,147.0,146.99,2.5171]
[1718155175700,1022.80131421,147.0,146.98,2.5172]
[1718155176202,1022.80131421,147.0,146.99,2.5171]
[1718155185377,1006.77661421,147.0,146.99,2.5171]
[1718155185584,1006.77661421,147.0,146.99,25.1716]
[1718155186709,1006.77661421,147.0,146.99,25.5116]
[1718155187478,1006.77661421,147.0,146.99,25.6816]
[1718155187699,1006.77661421,147.0,146.99,25.8516]
[1718155188987,1006.77661421,147.0,146.95,12.5888]
[1718155189179,1006.77661421,147.0,146.93,23.27]
[1718155189180,1006.77661421,147.0,146.99,2.5171]
[1718155189584,1006.77661421,147.0,146.99,7.5514]
[1718155190685,1006.77661421,147.0,146.99,15.1029]
[1718155191003,1006.77661421,147.0,146.99,25.3416]
[1718155191302,1006.77661421,147.0,146.99,25.5116]
[1718155191488,1006.77661421,147.0,146.99,2.8571]
[1718155192390,1006.77661421,147.0,146.99,7.8914]
[1718155192603,1006.77661421,147.0,146.99,15.4429]
[1718155193695,1006.77661421,147.0,146.99,25.5116]
[1718155194504,1006.77661421,147.0,146.99,25.6816]
[1718155194710,1006.77661421,147.0,146.99,25.8516]
[1718155195897,986.91276616,147.0,146.99,49.1216]
[1718155196111,986.91276616,147.0,146.99,51.87089995]
[1718155198215,986.91276616,147.0,146.99,28.60089995]
[1718155198402,986.91276616,147.0,146.99,27.92089995]
[1718155198906,986.91276616,147.0,146.99,25.1716]
[1718155200488,986.91276616,147.0,146.99,25.5116]
[1718155200808,986.91276616,147.0,146.99,25.6816]
[1718155201110,986.91276616,147.0,146.99,25.8516]
[1718155201299,986.91276616,147.0,146.99,25.5116]
[1718155201502,986.91276616,147.0,146.99,25.1716]
[1718155201813,986.91276616,147.0,146.99,7.5514]
[1718155201991,986.91276616,147.0,146.99,25.1716]
[1718155202193,986.91276616,147.0,146.99,25.5116]
[1718155202393,986.91276616,147.0,146.99,25.8516]
[1718155203112,986.91276616,147.0,146.99,28.60089995]
[1718155204289,986.91276616,147.0,146.99,48.60089995]
[1718155204489,986.91276616,147.0,146.99,171.87089995]
[1718155204891,966.37276616,147.0,146.99,192.21089995]
[1718155205091,966.19276616,147.0,146.99,292.21089995]
[1718155207320,961.19276616,147.0,146.99,292.21089995]
[1718155207522,945.19276616,147.0,146.99,292.21089995]
[1718155208222,923.47276616,147.0,146.99,292.21089995]
[1718155210028,923.47276616,147.0,146.99,71.19089995]
[1718155210228,923.47276616,147.0,146.99,47.92089995]
[1718155210428,923.47276616,147.0,146.99,5.26639995]
[1718155211021,923.47276616,147.0,146.99,17.85219995]
[1718155211221,923.47276616,147.0,146.99,27.92089995]
[1718155212028,923.47276616,147.0,146.99,171.87089995]
[1718155212334,923.47276616,147.0,146.99,292.21089995]
[1718155212335,902.75276616,147.0,146.99,292.21089995]
[1718155212625,691.78276616,147.0,146.99,292.21089995]
[1718155213704,691.78276616,147.0,146.99,333.00089995]
[1718155213905,690.78276616,147.0,146.99,333.00089995]
[1718155214802,681.68276616,147.0,146.99,333.00089995]
[1718155215029,676.48276616,147.0,146.99,356.27089995]
[1718155215230,482.47341054,147.0,146.99,356.27089995]
[1718155215529,480.43405492,147.0,146.99,333.00089995]
[1718155215828,478.3946993,147.0,146.99,333.00089995]
[1718155216021,473.3946993,147.0,146.99,333.00089995]
[1718155216211,472.3946993,147.0,146.99,333.00089995]
[1718155216531,455.81534368,147.0,146.99,333.00089995]
[1718155216737,450.33534368,147.0,146.99,333.00089995]
[1718155216900,419.95194368,147.0,146.99,356.27089995]
[1718155217107,376.15264368,147.0,146.99,356.27089995]
[1718155217307,366.92588807,147.0,146.99,356.27089995]
[1718155217613,342.42988806,147.0,146.99,356.27089995]
[1718155217806,340.42988806,147.0,146.99,356.27089995]
[1718155218001,338.39053244,147.0,146.99,356.27089995]
[1718155218205,338.39053244,147.0,146.99,333.00089995]
[1718155218413,174.95053244,147.0,146.99,333.00089995]
[1718155218620,172.95053244,147.0,146.99,333.00089995]
[1718155219003,170.95053244,147.0,146.99,333.00089995]
[1718155219330,168.95053244,147.0,146.99,333.00089995]
[1718155219509,166.95053244,147.0,146.99,333.00089995]
[1718155219835,164.95053244,147.0,146.99,333.00089995]
[1718155220137,162.95053244,147.0,146.99,333.00089995]
[1718155220426,139.23053244,147.0,146.99,333.00089995]
[1718155220618,108.70053244,147.0,146.99,333.00089995]
[1718155220813,104.70168576,147.0,146.99,333.00089995]
[1718155221129,102.70168576,147.0,146.99,338.39892122]
[1718155221438,100.70168576,147.0,146.99,338.39892122]
[1718155221607,98.70168576,147.0,146.99,338.39892122]
[1718155222016,96.70168576,147.0,146.99,338.39892122]
[1718155222312,94.66260734,147.0,146.99,338.39892122]
[1718155222512,92.62352892,147.0,146.99,338.39892122]
[1718155222839,90.5844505,147.0,146.99,338.39892122]
[1718155223214,88.54537208,147.0,146.99,338.39892122]
[1718155223423,86.50629366,147.0,146.99,338.39892122]
[1718155223817,84.46721524,147.0,146.99,338.39892122]
[1718155224133,82.42813682,147.0,146.99,338.39892122]
[1718155224322,82.42813682,147.0,146.99,268.26089995]
[1718155224533,82.42813682,147.0,146.99,168.26089995]
[1718155224719,82.42813682,147.0,146.99,27.92089995]
[1718155225723,82.42813682,147.0,146.99,48.26089995]
[1718155226116,82.42813682,147.0,146.99,48.77089995]
[1718155226331,82.42813682,147.0,146.99,68.94089995]
[1718155227040,81.92813682,147.0,146.99,47.92089995]
[1718155229339,81.92813682,147.0,146.99,48.09089995]
[1718155229549,81.92813682,147.0,146.99,48.60089995]
[1718155229749,81.92813682,147.0,146.99,148.60089995]
[1718155230028,81.92813682,147.0,146.99,48.60089995]
[1718155231725,81.92813682,147.0,146.99,27.92089995]
[1718155232939,81.92813682,147.0,146.99,28.26089995]
[1718155233127,81.92813682,147.0,146.99,28.60089995]
[1718155233826,88.33663682,147.0,146.99,27.92089995]
[1718155234518,21.8278,146.99,146.98,2.5173]
[1718155235629,6.1623,146.98,146.93,100.0]
[1718155235838,15.5823,146.99,146.95,12.5888]
[1718155236024,15.5823,146.99,146.98,2.5173]
[1718155236419,21.7446,146.99,146.98,2.5173]
[1718155236715,31.7446,146.99,146.98,2.5173]
[1718155236939,21.7446,146.99,146.98,7.5519]
[1718155237839,21.7446,146.99,146.98,25.3432]
[1718155238041,21.7446,146.99,146.98,25.6832]
[1718155239624,21.7446,146.99,146.98,25.8532]
[1718155240451,81.92813682,147.0,146.99,25.3416]
[1718155240652,81.92813682,147.0,146.99,45.8516]
[1718155244088,88.50883682,147.0,146.99,45.8516]
[1718155244239,81.92813682,147.0,146.99,45.8516]
[1718155244440,88.50883682,147.0,146.99,45.8516]
[1718155245458,88.50883682,147.0,146.99,25.8516]
[1718155245666,88.50883682,147.0,146.99,7.5514]
[1718155246369,88.50883682,147.0,146.99,2.5171]
[1718155246874,88.50883682,147.0,146.99,15.1029]
[1718155247574,88.50883682,147.0,146.99,25.1716]
[1718155249066,88.50883682,147.0,146.99,17.6201]
[1718155249261,88.50883682,147.0,146.99,7.5514]
[1718155249666,88.50883682,147.0,146.99,15.1029]
[1718155250167,81.92813682,147.0,146.99,25.3416]
[1718155250343,81.92813682,147.0,146.99,25.8516]
[1718155256176,81.92813682,147.0,146.99,2.5171]
[1718155256376,88.04433682,147.0,146.99,2.5171]
[1718155256775,88.04433682,147.0,146.99,7.5514]
[1718155257577,6.1162,147.0,146.99,2.5171]
[1718155260859,16.1162,147.0,146.99,2.5171]
[1718155263278,6.1162,147.0,146.99,2.5171]
[1718155263512,6.1162,147.0,146.99,7.5514]
[1718155263669,6.1162,147.0,146.99,25.1716]
[1718155264801,22.1454,147.03,147.02,7.5499]
[1718155265596,15.9694,147.03,147.02,25.1664]
[1718155266496,15.9694,147.03,147.02,17.6165]
[1718155266793,25.9694,147.03,147.02,7.5499]
[1718155267090,25.9694,147.03,147.0,17.6184]
[1718155267091,6.2814,147.01,147.0,2.517]
[1718155275589,10.0,147.02,147.01,2.5168]
[1718155275898,16.1368,147.02,147.01,2.5168]
[1718155276099,6.2634,147.01,147.0,2.5169]
[1718155276303,10.0,146.96,146.95,2.5177]
[1718155276497,10.0,146.96,146.94,2.5179]
[1718155276797,45.9203,147.02,146.94,2.5179]
[1718155276798,10.0,146.97,146.94,2.5179]
[1718155276996,6.451,146.96,146.94,2.5179]
[1718155277294,10.0,146.95,146.94,2.5179]
[1718155277807,10.0,146.95,146.93,5.0362]
[1718155277808,6.451,146.96,146.95,2.5178]
[1718155280477,6.451,146.96,146.93,12.5907]
[1718155280478,6.3958,146.93,146.9,2.5187]
[1718155280666,6.3958,146.93,146.9,2.5186]
[1718155280667,10.0,146.91,146.9,2.5186]
[1718155280872,10.0,146.93,146.9,2.5186]
[1718155281087,6.3958,146.92,146.91,2.5185]
[1718155283986,16.3237,146.91,146.9,2.5186]
[1718155285398,16.3237,146.91,146.9,7.556]
[1718155285399,10.0,146.91,146.9,7.556]
[1718155285577,10.0,146.91,146.9,15.1121]
[1718155287396,23.27,146.93,146.92,2.5183]
[1718155287397,10.0,146.93,146.92,2.5183]
[1718155288596,10.0,146.93,146.85,0.8418073]
[1718155288597,10.0,146.95,146.94,2.518]
[1718155288775,25.3461,146.97,146.96,2.5176]
[1718155289200,31.678,146.97,146.96,2.5176]
[1718155290484,25.3461,146.97,146.96,2.5176]
[1718155291079,10.0,146.94,146.88,7.5568]
[1718155291299,10.0,146.94,146.93,2.5182]
[1718155292385,10.0,146.94,146.92,2.5182]
[1718155292586,16.2551,146.94,146.92,2.5182]
[1718155293201,16.2551,146.94,146.92,2.5183]
[1718155293580,10.0,146.89,146.88,5.0379]
[1718155293809,10.0,146.92,146.9,2.5186]
[1718155294012,16.2654,146.92,146.86,7.5578]
[1718155294212,16.2654,146.92,146.86,17.6347]
[1718155294413,10.0,146.88,146.85,5.8808073]
[1718155294589,16.2654,146.9,146.85,5.8808073]
[1718155294785,15.2945,146.91,146.86,7.5581]
[1718155294991,15.2945,146.91,146.9,2.5187]
[1718155295493,16.2987,146.9,146.85,15.9590073]
[1718155295801,10.0,146.86,146.85,3.3613073]
[1718155296192,10.0,146.86,146.85,0.8418073]
[1718155296400,10.0,146.86,146.85,3.3613073]
[1718155296635,16.5221,146.88,146.86,2.5193]
[1718155297118,10.0,146.88,146.87,2.5192]
[1718155303711,10.0,146.9,146.89,2.5188]
[1718155304330,10.0,146.9,146.87,5.0383]
[1718155304331,10.0,146.9,146.88,2.5189]
[1718155304821,10.0,146.9,146.87,2.5191]
[1718155305125,16.3364,146.9,146.88,2.519]
[1718155305614,16.3364,146.9,146.89,2.5188]
[1718155306307,16.3364,146.9,146.88,2.5189]
[1718155306618,10.0,146.88,146.87,2.5192]
[1718155307324,10.0,146.88,146.85,0.8418073]
[1718155307325,10.0,146.86,146.85,0.8418073]
[1718155307617,10.0,146.86,146.85,3.3613073]
[1718155315436,10.0,146.86,146.85,0.8418073]
[1718155315635,10.0,146.86,146.85,3.3613073]
[1718155316038,55.1272,146.86,146.78,10.0809]
[1718155316253,10.0,146.82,146.81,2.5201]
[1718155317147,16.2879,146.82,146.8,2.5203]
[1718155317354,10.0,146.8,146.79,2.5205]
[1718155317659,10.0,146.8,146.71,115.1498]
[1718155317660,10.0,146.76,146.74,5.0429]
[1718155317843,10.0,146.76,146.75,2.5212]
[1718155318543,10.0,146.78,146.73,12.6076]
[1718155318856,10.0,146.78,146.77,2.5209]
[1718155319362,6.2879,146.77,146.74,2.5213]
[1718155319558,33.27,146.76,146.73,2.5215]
[1718155319847,33.27,146.76,146.7,0.8418073]
[1718155320152,33.27,146.76,146.75,2.5212]
[1718155320467,33.27,146.76,146.74,2.5214]
[1718155320626,33.27,146.76,146.71,5.0438]
[1718155320828,33.27,146.76,146.74,2.5213]
[1718155321038,33.27,146.76,146.75,2.5212]
[1718155321432,33.27,146.76,146.74,2.5214]
[1718155321872,39.3058,146.76,146.7,0.8418073]
[1718155322167,39.3058,146.76,146.73,2.5216]
[1718155322334,10.0,146.78,146.77,2.5209]
[1718155322530,10.0,146.8,146.76,5.0422]
[1718155322745,16.4214,146.83,146.72,100.0]
[1718155322951,16.4214,146.83,146.71,100.0]
[1718155322952,16.4214,146.83,146.81,2.5201]
[1718155323157,16.4214,146.83,146.78,5.0414]
[1718155323445,10.0,146.82,146.78,5.0414]
[1718155323845,10.0,146.82,146.81,2.5201]
[1718155325042,10.0,146.82,146.81,7.7306]
[1718155325249,80.92,146.85,146.84,2.5197]
[1718155325465,80.92,146.85,146.84,7.5591]
[1718155325646,80.92,146.85,146.84,2.5197]
[1718155326070,10.0,146.82,146.81,2.5201]
[1718155326250,10.0,146.82,146.8,2.5203]
[1718155326668,10.0,146.82,146.78,20.0]
[1718155326853,10.0,146.82,146.79,2.5205]
[1718155327184,16.2265,146.82,146.79,2.5205]
[1718155327361,16.4517,146.82,146.76,25.0419]
[1718155327562,16.4517,146.82,146.81,2.5202]
[1718155328073,10.0,146.82,146.81,2.5202]
[1718155329375,80.92,146.85,146.81,0.17]
[1718155329549,80.92,146.85,146.81,0.34]
[1718155329748,80.92,146.85,146.76,120.0]
[1718155329749,80.92,146.85,146.79,5.0411]
[1718155329952,10.0,146.84,146.83,2.5199]
[1718155330250,10.0,146.84,146.76,12.6052]
[1718155330471,10.0,146.82,146.8,2.5203]
[1718155330657,10.0,146.82,146.81,2.5202]
[1718155333061,10.0,146.82,146.81,7.5607]
[1718155333974,10.0,146.84,146.83,2.5199]
[1718155334975,10.0,146.84,146.83,7.5597]
[1718155335570,10.0,146.84,146.83,2.5199]
[1718155337267,10.0,146.84,146.82,2.52]
[1718155337455,10.0,146.84,146.83,2.5199]
[1718155337960,10.0,146.84,146.77,15.1007]
[1718155338274,10.0,146.83,146.82,2.52]
[1718155338773,10.0,146.83,146.81,2.5201]
[1718155338972,10.0,146.83,146.75,20.0]
[1718155338973,18.5483,146.81,146.77,2.5208]
[1718155339202,10.0,146.79,146.77,2.5208]
[1718155339352,10.0,146.79,146.74,10.0852]
[1718155339559,10.0,146.79,146.78,2.5207]
[1718155342874,10.0,146.77,146.76,2.5211]
[1718155343263,2.5206,146.79,146.76,2.5211]
[1718155343466,16.1612,146.78,146.76,2.5211]
[1718155344755,6.4969,146.77,146.75,2.5212]
[1718155344976,6.4969,146.77,146.76,2.5211]
[1718155345673,10.0,146.78,146.77,2.5209]
[1718155345993,10.0,146.8,146.78,2.5207]
[1718155346499,16.3503,146.8,146.77,2.5209]
[1718155346971,16.3503,146.8,146.76,5.0422]
[1718155347176,16.3503,146.8,146.79,2.5206]
[1718155347884,10.0,146.8,146.79,2.5206]
[1718155348475,33.27,146.82,146.75,2.5211]
[1718155348676,33.27,146.82,146.65,105.39527989]
[1718155348677,10.0,146.79,146.76,2.5209]
[1718155348904,10.0,146.79,146.72,30.087]
[1718155348905,10.0,146.79,146.74,7.5642]
[1718155349212,10.0,146.79,146.76,2.521]
[1718155349398,10.0,146.79,146.77,2.5209]
[1718155350274,10.0,146.79,146.75,2.5212]
[1718155350573,10.0,146.79,146.76,2.5211]
[1718155350880,16.5075,146.79,146.76,2.5211]
[1718155351293,6.0121,146.78,146.75,2.5212]
[1718155351479,10.0,146.77,146.75,2.5212]
[1718155351810,16.0121,146.77,146.7,5.8859073]
[1718155352108,10.0,146.75,146.74,2.5214]
[1718155352397,10.0,146.75,146.73,2.5215]
[1718155352788,10.0,146.75,146.74,2.5214]
[1718155354601,16.5822,146.75,146.73,2.5215]
[1718155355088,10.0,146.74,146.7,0.8418073]
[1718155355405,10.0,146.74,146.72,2.5217]
[1718155355604,10.0,146.74,146.71,2.5219]
[1718155355783,10.0,146.74,146.72,2.5217]
[1718155356286,10.0,146.71,146.7,3.3639073]
[1718155357009,16.2462,146.71,146.7,3.3639073]
[1718155358484,10.0,146.71,146.7,3.3639073]
[1718155358886,10.0,146.71,146.7,0.8418073]
[1718155359407,10.0,146.71,146.7,3.3639073]
[1718155359602,33.27,146.73,146.71,2.5219]
[1718155359905,10.0,146.73,146.72,2.5218]
[1718155361279,10.0,146.73,146.71,2.5218]
[1718155362902,10.0,146.73,146.72,2.5218]
[1718155363411,10.0,146.73,146.71,2.5219]
[1718155363801,10.0,146.73,146.7,0.8418073]
[1718155363802,10.0,146.75,146.7,5.8858073]
[1718155364010,10.0,146.75,146.73,2.5215]
[1718155365607,10.0,146.75,146.74,2.5214]
[1718155367693,10.0,146.77,146.76,2.5211]
[1718155369697,10.0,146.79,146.77,2.5208]
[1718155369904,10.0,146.79,146.75,5.0425]
[1718155370099,10.0,146.79,146.78,2.5207]
[1718155371213,10.0,146.79,146.77,2.5209]
[1718155372414,10.0,146.79,146.76,2.521]
[1718155372608,10.0,146.79,146.75,2.5211]
[1718155372609,12.5206,146.79,146.75,2.5211]
[1718155372806,10.0,146.79,146.76,2.521]
[1718155373014,10.0,146.79,146.73,15.1295]
[1718155373494,10.0,146.79,146.75,2.5212]
[1718155373495,10.0,146.77,146.75,2.5212]
[1718155373689,10.0,146.77,146.71,10.0879]
[1718155373896,35.7909,146.77,146.73,2.5215]
[1718155374102,2.5211,146.76,146.72,2.5217]
[1718155374399,10.0,146.75,146.73,2.5216]
[1718155375511,6.2559,146.76,146.73,2.5215]
[1718155375997,10.0,146.75,146.73,2.5215]
[1718155378712,16.0272,146.75,146.73,2.5215]
[1718155380295,16.0272,146.75,146.74,2.5214]
[1718155383322,16.0272,146.75,146.72,2.5217]
[1718155383524,39.4767,146.73,146.7,0.8418073]
[1718155383822,6.2067,146.72,146.7,3.3638073]
[1718155384322,10.0,146.71,146.7,3.3638073]
[1718155384618,6.2649,146.71,146.7,0.8418073]
[1718155384811,16.2649,146.71,146.7,3.3639073]
[1718155385025,10.0,146.71,146.7,3.3639073]
[1718155385206,39.5349,146.73,146.71,2.5219]
[1718155385605,16.2399,146.71,146.7,0.8418073]
[1718155386634,18.7618,146.71,146.7,0.8418073]
[1718155387221,80.0781927,146.7,146.63,17.6624]
[1718155387530,10.0,146.68,146.66,2.5228]
[1718155387920,10.0,146.68,146.65,2.5229]
[1718155388134,10.0,146.66,146.61,5.0472]
[1718155388316,10.0,146.64,146.63,2.5233]
[1718155388721,10.0,146.64,146.62,2.5234]
[1718155389031,10.0,146.62,146.61,2.5237]
[1718155389247,10.0,146.62,146.58,28.9563]
[1718155389248,10.0,146.62,146.58,12.6162]
[1718155389418,16.5595,146.62,146.59,2.524]
[1718155389621,16.5595,146.62,146.58,12.6162]
[1718155389622,9.083,146.62,146.58,15.1403]
[1718155389808,6.5595,146.6,146.58,12.6162]
[1718155390339,25.7937,146.61,146.56,2.5245]
[1718155390340,6.5595,146.59,146.56,2.5245]
[1718155390539,6.5595,146.59,146.55,5.8910073]
[1718155390540,16.5595,146.59,146.55,5.8910073]
[1718155390717,10.0,146.59,146.58,2.5242]
[1718155390926,10.0,146.59,146.58,7.5726]
[1718155391136,33.27,146.65,146.59,10.0961]
[1718155391444,10.0,146.65,146.64,2.5231]
[1718155391620,112.6855927,146.7,146.69,2.5223]
[1718155391815,90.0781927,146.7,146.69,2.5223]
[1718155392147,90.0781927,146.7,146.64,10.0925]
[1718155392439,90.0781927,146.7,146.68,2.5224]
[1718155393117,90.0781927,146.7,146.64,10.0925]
[1718155393317,80.0781927,146.7,146.69,2.5223]
[1718155393515,80.0781927,146.7,146.69,25.2231]
[1718155394038,80.0781927,146.7,146.69,45.2231]
[1718155394616,80.0781927,146.7,146.69,51.7634]
[1718155394826,80.0781927,146.7,146.69,51.9334]
[1718155395439,63.4115927,146.7,146.69,51.9334]
[1718155395716,25.71629271,146.7,146.69,113.1334]
[1718155395936,9.271e-05,146.7,146.69,107.1031]
[1718155396234,6.6348,146.85,146.84,2.5197]
[1718155396440,2.5195,146.86,146.81,2.5202]
[1718155396650,16.3404,146.85,146.81,2.5202]
[1718155396830,16.3404,146.85,146.84,2.5197]
[1718155396831,6.3404,146.85,146.84,2.5197]
[1718155397053,25.0305,146.88,146.85,2.5195]
[1718155397054,6.3404,146.87,146.85,2.5195]
[1718155397416,16.3913,146.92,146.88,2.519]
[1718155397912,6.3913,146.92,146.84,17.6376]
[1718155398115,16.3913,146.92,146.88,2.5189]
[1718155398338,16.3913,146.92,146.83,0.34]
[1718155398339,6.3913,146.91,146.87,2.5192]
[1718155398530,6.3913,146.91,146.88,2.5189]
[1718155398732,10.0,146.92,146.88,2.5189]
[1718155398909,10.0,146.92,146.89,2.5187]
[1718155399114,10.0,146.9,146.81,25.0401]
[1718155399337,16.2278,146.88,146.85,2.5194]
[1718155399517,12.5199,146.83,146.78,2.5207]
[1718155399717,10.0,146.8,146.77,2.5209]
[1718155399921,10.0,146.78,146.7,22.6986]
[1718155400143,10.0,146.8,146.7,17.6547]
[1718155400354,6.2278,146.79,146.67,5.0453]
[1718155400524,6.2278,146.81,146.77,2.5208]
[1718155400732,6.2278,146.81,146.78,2.5207]
[1718155401057,16.2278,146.81,146.78,2.5207]
[1718155401339,6.2278,146.81,146.79,2.5205]
[1718155401645,16.2278,146.83,146.8,2.5204]
[1718155401854,16.2278,146.83,146.81,2.5202]
[1718155402541,10.0,146.83,146.82,2.52]
[1718155403319,8.7464,146.91,146.86,2.5194]
[1718155403541,6.2278,146.9,146.83,5.0398]
[1718155403725,6.2278,146.9,146.87,2.5191]
[1718155403928,10.0,146.89,146.81,15.1215]
[1718155404144,10.0,146.87,146.79,5.2112]
[1718155404337,16.2278,146.87,146.83,2.5197]
[1718155404516,6.2278,146.87,146.81,5.0403]
[1718155404718,16.1577,146.89,146.86,2.5194]
[1718155404919,6.1577,146.88,146.84,2.5196]
[1718155405122,6.1577,146.88,146.82,2.5199]
[1718155405417,16.127,146.87,146.76,5.0419]
[1718155405620,16.127,146.87,146.78,7.5622]
[1718155405621,10.0,146.87,146.78,7.5622]
[1718155405819,16.127,146.87,146.84,2.5195]
[1718155406032,16.127,146.87,146.8,12.602]
[1718155406247,10.0,146.85,146.82,2.52]
[1718155406438,10.0,146.85,146.78,12.6035]
[1718155406637,16.127,146.85,146.82,2.5199]
[1718155406952,16.127,146.85,146.83,2.5198]
[1718155408150,10.0,146.85,146.77,5.0418]
[1718155408460,16.2398,146.81,146.77,2.5208]
[1718155408618,10.0,146.79,146.77,2.5208]
[1718155408824,6.2398,146.8,146.77,2.5208]
[1718155409124,16.2398,146.8,146.78,2.5207]
[1718155409546,16.2398,146.8,146.75,5.0424]
[1718155409547,6.2398,146.8,146.79,2.5206]
[1718155410338,16.0818,146.82,146.76,7.5631]
[1718155410542,16.0818,146.82,146.8,2.5203]
[1718155410723,16.0818,146.82,146.81,2.5202]
[1718155411528,10.0,146.82,146.81,2.5202]
[1718155411928,10.0,146.82,146.79,2.5206]
[1718155412235,16.5953,146.82,146.76,20.0]
[1718155412431,10.0,146.82,146.81,2.5202]
[1718155414156,10.0,146.84,146.83,2.5199]
[1718155414536,6.5953,146.85,146.83,2.5199]
[1718155414742,16.5953,146.85,146.83,2.5199]
[1718155415033,6.5953,146.85,146.81,5.0404]
[1718155415261,10.0,146.85,146.84,2.5197]
[1718155416544,10.0,146.85,146.83,2.5198]
[1718155416926,10.0,146.85,146.82,2.52]
[1718155417131,10.0,146.85,146.83,2.5199]
[1718155417548,10.0,146.85,146.84,2.5197]
[1718155418053,16.1152,146.88,146.86,2.5192]
[1718155418254,16.1152,146.88,146.83,12.5993]
[1718155418627,22.5198,146.88,146.84,5.0394]
[1718155418825,6.4046,146.9,146.84,5.0394]
[1718155419038,6.4046,146.9,146.86,2.5193]
[1718155419334,10.0,146.85,146.8,5.0408]
[1718155419544,10.0,146.83,146.8,5.0408]
[1718155419741,6.1134,146.85,146.82,2.52]
[1718155419945,16.1134,146.85,146.83,2.5199]
[1718155420145,10.0,146.83,146.82,2.52]
[1718155422346,10.0,146.83,146.77,16.6436]
[1718155422551,10.0,146.83,146.81,2.5202]
[1718155422740,6.6475,146.82,146.8,2.5203]
[1718155423064,10.0,146.85,146.84,2.5197]
[1718155423365,10.0,146.85,146.83,2.5198]
[1718155423661,16.6475,146.85,146.83,2.5198]
[1718155424643,6.5857,146.84,146.82,2.52]
[1718155424948,10.0,146.83,146.82,2.52]
[1718155429338,10.0,146.83,146.82,25.2006]
[1718155429671,10.0,146.83,146.82,17.6404]
[1718155429850,10.0,146.83,146.82,7.5601]
[1718155430055,10.0,146.83,146.82,2.52]
[1718155433841,10.0,146.88,146.87,2.5192]
[1718155434042,10.0,146.86,146.85,2.5194]
[1718155434243,10.0,146.86,146.85,2.5195]
[1718155434457,10.0,146.86,146.84,2.5196]
[1718155435557,10.0,146.86,146.85,2.5195]
[1718155437474,16.1609,146.86,146.82,5.04]
[1718155437680,16.1609,146.86,146.85,2.5195]
[1718155437854,10.0,146.86,146.85,2.5195]
[1718155439323,26.5918,146.89,146.88,2.519]
[1718155440177,10.0,146.89,146.88,2.519]
[1718155440482,6.1609,146.9,146.89,2.5188]
[1718155440694,16.1609,146.9,146.89,2.5188]
[1718155441245,10.0,146.9,146.89,2.5188]
[1718155441878,10.0,146.92,146.91,2.5185]
[1718155442177,6.4241,146.94,146.87,17.6343]
[1718155442178,16.4241,146.94,146.9,5.0372]
[1718155442381,10.0,146.94,146.92,2.5182]
[1718155442753,10.0,146.96,146.93,2.5182]
[1718155442953,12.5177,146.96,146.92,2.5183]
[1718155443158,10.0,146.93,146.91,2.5185]
[1718155443609,10.0,146.93,146.9,2.5186]
[1718155443610,10.0,146.91,146.9,2.5186]
[1718155447991,10.0,146.91,146.86,7.5579]
[1718155448170,10.0,146.87,146.86,2.5194]
[1718155448581,6.3312,146.92,146.82,1.5334]